bitfinex/quotes_ETHUSD_20250827
["timestamp","ask_amount","ask_price","bid_price","bid_amount"]
[1756318286134,0.022,4640.8,4640.7,2.15484732]
[1756318286339,1e-08,4640.8,4640.7,7.64331667]
[1756318286534,1e-08,4640.8,4640.7,8.3575682]
[1756318290263,1e-08,4641.1,4641.0,2.15470803]
[1756318290469,1e-08,4641.1,4641.0,5.80125511]
[1756318290765,1e-08,4641.1,4641.0,8.54650951]
[1756318291137,1e-08,4641.1,4641.0,8.63286651]
[1756318291336,1e-08,4641.1,4641.0,8.74086651]
[1756318291960,1e-08,4641.1,4641.0,11.74086651]
[1756318292265,1e-08,4641.8,4641.7,2.15438309]
[1756318292566,1e-08,4641.8,4641.7,7.88881013]
[1756318292868,1e-08,4641.8,4641.7,8.2738663]
[1756318293267,1e-08,4641.8,4641.7,8.7110663]
[1756318293748,1e-08,4641.8,4641.7,8.2738663]
[1756318294340,1e-08,4641.8,4641.7,8.7110663]
[1756318296353,0.28750001,4641.8,4641.7,4.3502663]
[1756318296552,0.28750001,4641.8,4641.7,7.9742663]
[1756318297471,1e-08,4641.8,4641.7,8.7100663]
[1756318299489,1e-08,4641.8,4641.7,8.87562475]
[1756318299789,1e-08,4641.8,4641.7,8.43842475]
[1756318299992,1e-08,4641.8,4641.7,8.13982475]
[1756318300178,1e-08,4641.8,4641.7,8.43842475]
[1756318300684,0.27560001,4641.8,4641.7,4.51582475]
[1756318300884,0.27560001,4641.8,4641.7,8.13982475]
[1756318301392,1e-08,4641.8,4641.7,8.13982475]
[1756318302092,1e-08,4641.8,4641.7,8.87562475]
[1756318303970,0.00200001,4641.8,4641.7,8.87562475]
[1756318304675,0.00200001,4641.8,4641.7,8.43842475]
[1756318305087,0.00200001,4641.8,4641.7,8.87562475]
[1756318307594,0.00200001,4641.8,4641.7,8.13982475]
[1756318307992,0.23830001,4641.8,4641.7,4.3502663]
[1756318308191,0.71000001,4641.8,4641.7,7.54338309]
[1756318309962,0.23830001,4641.8,4641.7,7.54338309]
[1756318310166,0.00200001,4641.8,4641.7,7.84938309]
[1756318310367,0.00200001,4641.8,4641.7,10.00511279]
[1756318312888,0.00200001,4641.8,4641.7,9.56031279]
[1756318313618,1e-08,4642.3,4642.2,2.15415104]
[1756318313923,1e-08,4642.9,4642.8,2.15387266]
[1756318314220,1e-08,4642.9,4642.8,18.29765553]
[1756318314417,1e-08,4642.9,4642.8,18.47043481]
[1756318314620,1e-08,4642.9,4642.8,18.91523481]
[1756318317292,1e-08,4642.9,4642.8,11.80976983]
[1756318317700,1e-08,4642.9,4642.8,11.36496983]
[1756318317897,1e-08,4642.9,4642.8,7.74096983]
[1756318318115,1e-08,4642.9,4642.8,11.36396983]
[1756318318315,1e-08,4642.9,4642.8,11.80876983]
[1756318320134,1e-08,4642.9,4642.8,11.36396983]
[1756318320434,1e-08,4642.9,4642.8,11.05796983]
[1756318320642,1e-08,4642.9,4642.8,11.07796983]
[1756318320934,1e-08,4642.9,4642.8,11.38396983]
[1756318321109,1e-08,4642.9,4642.8,11.82876983]
[1756318321797,0.23630001,4642.9,4642.8,7.45496983]
[1756318322001,0.70800001,4642.9,4642.8,3.93787266]
[1756318322312,0.70800001,4642.9,4642.8,7.56087266]
[1756318324198,0.23630001,4642.9,4642.8,7.56087266]
[1756318324420,1e-08,4642.9,4642.8,7.86687266]
[1756318324627,1e-08,4642.9,4642.8,8.91343396]
[1756318325035,1e-08,4642.9,4642.8,9.35823396]
[1756318325213,1e-08,4642.9,4642.8,8.99975496]
[1756318325410,1e-08,4642.9,4642.8,9.44455496]
[1756318325722,1e-08,4642.9,4642.8,8.99975496]
[1756318326232,1e-08,4642.9,4642.8,8.91243396]
[1756318326530,1e-08,4642.9,4642.8,8.89243396]
[1756318327921,0.23630001,4642.9,4642.8,8.58643396]
[1756318328125,0.23630001,4642.9,4642.8,4.96443396]
[1756318328423,0.23630001,4642.9,4642.8,8.58643396]
[1756318329451,1e-08,4642.9,4642.8,8.58643396]
[1756318329736,0.23630001,4642.9,4642.8,8.58643396]
[1756318330402,1e-08,4642.9,4642.8,8.89243396]
[1756318330604,1e-08,4642.9,4642.8,8.58643396]
[1756318332429,0.23630001,4642.9,4642.8,8.58643396]
[1756318332630,0.23630001,4642.9,4642.8,7.53987266]
[1756318333546,1e-08,4642.9,4642.8,7.53987266]
[1756318333751,0.23630001,4642.9,4642.8,7.53987266]
[1756318334725,1e-08,4642.9,4642.8,7.84587266]
[1756318334949,0.23630001,4642.9,4642.8,7.53987266]
[1756318335341,1e-08,4642.9,4642.8,7.53987266]
[1756318335753,0.23860001,4642.9,4642.8,7.53987266]
[1756318336554,1e-08,4642.9,4642.8,7.53987266]
[1756318336869,1e-08,4642.9,4642.8,12.26885396]
[1756318337032,1e-08,4642.9,4642.8,12.74255396]
[1756318337355,1e-08,4643.5,4643.4,2.15359434]
[1756318337667,1e-08,4643.8,4643.7,2.15345521]
[1756318337966,1e-08,4643.8,4643.7,10.87248976]
[1756318338180,1e-08,4643.9,4643.8,2.15340884]
[1756318338388,1e-08,4643.9,4643.8,5.15340884]
[1756318338543,1e-08,4643.9,4643.8,5.91300884]
[1756318339062,1e-08,4644.5,4644.4,2.15313065]
[1756318339271,0.2495,4645.4,4644.6,2.15303793]
[1756318339272,1e-08,4645.4,4644.6,2.15303793]
[1756318339455,0.4728,4647.5,4646.7,2.1520649]
[1756318339636,0.08,4648.3,4646.7,5.278]
[1756318339837,0.3252,4646.8,4646.7,5.278]
[1756318340081,0.3252,4646.8,4646.7,7.4300649]
[1756318340296,0.7287,4646.8,4646.7,7.4300649]
[1756318340476,0.7287,4646.8,4646.7,7.5380649]
[1756318340987,0.7287,4646.8,4646.7,1.764]
[1756318341141,0.7287,4646.8,4646.7,7.5390649]
[1756318342401,0.7287,4646.8,4646.7,5.387]
[1756318342694,0.7287,4646.8,4646.7,1.764]
[1756318342896,3.67271859,4646.8,4646.7,0.108]
[1756318343042,4.03999045,4646.8,4646.7,3.622]
[1756318343252,0.792,4646.6,4646.5,3.73]
[1756318343459,1.5007,4646.6,4646.5,0.108]
[1756318343797,3.65281122,4646.6,4646.5,0.108]
[1756318344157,1.5007,4646.6,4646.5,0.108]
[1756318344361,1.07597672,4646.6,4646.5,0.108]
[1756318344580,0.7087,4646.6,4646.5,0.108]
[1756318345071,2.86081122,4646.6,4646.5,0.108]
[1756318345276,3.65281122,4646.6,4646.5,0.108]
[1756318345446,3.65281122,4646.6,4646.5,3.73]
[1756318345645,4.26898276,4646.6,4646.5,0.108]
[1756318351679,2.11687154,4646.6,4646.5,0.108]
[1756318351991,1.0972,4646.6,4646.5,0.108]
[1756318352974,0.80431364,4646.6,4646.5,0.108]
[1756318353169,2.95642486,4646.6,4646.5,0.108]
[1756318353387,0.80431364,4646.6,4646.5,0.108]
[1756318355965,0.792,4646.6,4646.5,0.108]
[1756318356148,0.792,4646.6,4646.5,0.109]
[1756318356348,0.794,4646.6,4646.5,0.109]
[1756318360081,2.94611122,4646.6,4646.5,0.109]
[1756318360250,3.40210715,4646.6,4646.5,0.109]
[1756318360450,1.25129593,4646.6,4646.5,0.109]
[1756318360650,3.40210715,4646.6,4646.5,0.109]
[1756318361180,1.24999593,4646.6,4646.5,0.109]
[1756318361886,3.40210715,4646.6,4646.5,0.109]
[1756318362686,0.794,4646.6,4646.5,0.109]
[1756318363191,0.794,4646.6,4646.5,4.4886]
[1756318365162,0.794,4646.6,4646.5,3.729]
[1756318365667,2.94741122,4646.6,4646.5,0.109]
[1756318365987,0.7953,4646.6,4646.5,0.109]
[1756318366691,2.94741122,4646.6,4646.5,0.109]
[1756318366985,3.54414955,4646.6,4646.5,0.109]
[1756318367189,3.66864955,4646.6,4646.5,0.109]
[1756318367579,10.28864955,4646.6,4646.5,0.001]
[1756318367782,10.39664955,4646.6,4646.5,0.001]
[1756318368192,12.05164955,4646.6,4646.5,0.001]
[1756318368365,2.94434282,4646.1,4646.0,0.001]
[1756318368695,10.6205106,4646.1,4646.0,1e-08]
[1756318368885,11.08332835,4646.1,4646.0,1e-08]
[1756318369264,5.94457447,4645.6,4645.5,1e-08]
[1756318369471,11.32757447,4645.6,4645.5,1e-08]
[1756318369691,11.88637037,4645.6,4645.5,1e-08]
[1756318371078,12.22340528,4645.6,4645.5,1e-08]
[1756318371277,12.10130528,4645.6,4645.5,1e-08]
[1756318371492,8.48130528,4645.6,4645.5,1e-08]
[1756318371675,3.95703491,4645.6,4645.5,0.29140001]
[1756318371885,0.33703491,4645.6,4645.5,0.84870001]
[1756318372192,2.15234282,4646.1,4645.5,0.84870001]
[1756318372393,0.792,4645.7,4645.5,0.84870001]
[1756318372597,3.792,4645.7,4645.5,0.84870001]
[1756318372789,3.0,4645.7,4645.5,0.84870001]
[1756318373295,5.1524326,4646.0,4645.5,0.84870001]
[1756318373496,2.94439144,4646.0,4645.5,0.84870001]
[1756318373681,0.792,4645.8,4645.5,0.84870001]
[1756318373995,0.792,4645.6,4645.5,0.10800001]
[1756318374209,3.0,4645.7,4645.5,0.10800001]
[1756318374375,0.792,4645.6,4645.5,0.10800001]
[1756318374573,0.792,4645.7,4645.5,0.10800001]
[1756318376102,0.792,4645.8,4645.6,0.7407]
[1756318376299,0.792,4645.8,4645.6,0.2914]
[1756318376979,0.792,4646.1,4645.6,0.2914]
[1756318377179,3.0,4646.1,4646.0,0.108]
[1756318377384,0.792,4646.3,4646.0,0.8487]
[1756318377580,3.621,4646.9,4646.3,2.15224485]
[1756318377785,3.02,4646.8,4646.5,0.108]
[1756318377988,0.02,4646.8,4646.5,0.3994]
[1756318378293,0.02,4646.8,4646.5,0.8487]
[1756318378494,0.812,4646.8,4646.5,0.8487]
[1756318378680,3.812,4646.8,4646.5,0.8487]
[1756318378885,0.02,4646.8,4646.5,0.8487]
[1756318379393,0.792,4646.7,4646.5,0.8487]
[1756318379925,0.02,4646.8,4646.5,0.8487]
[1756318380595,0.792,4646.7,4646.5,0.8487]
[1756318381131,0.792,4646.5,4645.5,1.65500001]
[1756318381289,0.792,4646.3,4645.5,1.65500001]
[1756318381490,0.792,4646.0,4645.9,0.108]
[1756318381689,0.792,4646.1,4645.9,0.108]
[1756318381899,0.792,4646.1,4645.9,0.3994]
[1756318382439,0.792,4646.1,4645.9,0.108]
[1756318382790,2.94568915,4646.0,4645.9,0.108]
[1756318383135,0.792,4645.8,4645.5,1e-08]
[1756318383297,0.792,4645.8,4645.6,0.4493]
[1756318383619,2.26019593,4646.5,4645.7,2.8932173]
[1756318383826,0.792,4646.2,4645.9,0.108]
[1756318384395,0.792,4646.0,4645.9,0.108]
[1756318385023,2.94438915,4646.0,4645.9,0.108]
[1756318385217,2.94457447,4645.6,4645.5,1e-08]
[1756318385423,5.94457447,4645.6,4645.5,1e-08]
[1756318385598,9.56457447,4645.6,4645.5,1e-08]
[1756318387337,2.94480618,4645.1,4645.0,0.001]
[1756318387555,2.94480618,4645.1,4645.0,1e-08]
[1756318387556,27.54461643,4645.1,4645.0,1e-08]
[1756318387842,0.792,4643.9,4643.8,0.02]
[1756318387995,11.22136247,4643.9,4643.8,0.02]
[1756318388199,11.32691744,4643.9,4643.8,0.02]
[1756318388513,12.57183282,4643.9,4643.8,0.02]
[1756318388905,12.90897368,4643.9,4643.8,0.02]
[1756318389109,12.80341871,4643.9,4643.8,0.02]
[1756318392334,3.95814086,4643.9,4643.8,0.02]
[1756318392636,3.621,4644.2,4643.8,0.02]
[1756318392932,1.99309419,4644.7,4643.9,2.15336222]
[1756318393133,1.99309419,4644.7,4644.0,0.02153316]
[1756318393134,0.33709419,4644.7,4644.0,0.02153316]
[1756318393368,0.02,4645.8,4644.0,3.624]
[1756318393647,0.02,4645.8,4645.7,2.15252814]
[1756318394004,0.3569476,4645.8,4645.7,2.15252814]
[1756318395349,0.02,4645.8,4645.7,2.26052814]
[1756318395646,0.02,4645.8,4645.7,2.28205342]
[1756318395847,0.002,4646.6,4646.5,2.15215753]
[1756318396049,0.002,4646.6,4646.5,5.99837328]
[1756318397611,0.002,4646.6,4646.5,5.99737328]
[1756318398358,1e-08,4646.6,4646.5,5.99737328]
[1756318398551,0.02,4649.8,4646.5,5.99737328]
[1756318398552,1e-08,4647.1,4647.0,2.15192597]
[1756318398765,1e-08,4647.1,4647.0,2.17344522]
[1756318398935,1e-08,4647.1,4647.0,5.90598966]
[1756318399125,1e-08,4647.6,4647.5,2.15169445]
[1756318399327,1e-08,4647.6,4647.5,7.45921139]
[1756318399671,1e-08,4647.6,4647.5,7.43769445]
[1756318400757,1e-08,4647.6,4647.5,6.80769445]
[1756318401057,1e-08,4647.6,4647.5,11.33364065]
[1756318402721,1e-08,4647.6,4647.5,7.70364065]
[1756318403171,1e-08,4647.6,4647.5,11.33164065]
[1756318403523,1e-08,4647.6,4647.5,7.70364065]
[1756318403750,1e-08,4647.6,4647.5,11.33164065]
[1756318404674,1e-08,4647.6,4647.5,11.33064065]
[1756318405869,1e-08,4647.6,4647.5,11.43784065]
[1756318408677,1e-08,4647.6,4647.5,11.33064065]
[1756318408879,1e-08,4647.6,4647.5,11.43784065]
[1756318410462,1e-08,4648.1,4648.0,2.15146299]
[1756318410781,1e-08,4648.1,4648.0,8.90717761]
[1756318410979,1e-08,4648.1,4648.0,8.88566299]
[1756318412983,1e-08,4648.1,4648.0,5.88366299]
[1756318413965,0.00130001,4648.1,4648.0,2.25866299]
[1756318414181,1e-08,4648.1,4648.0,6.51213858]
[1756318414490,0.00130001,4648.1,4648.0,2.25866299]
[1756318414790,0.00130001,4648.1,4648.0,5.90517761]
[1756318414965,0.00130001,4648.1,4648.0,5.88366299]
[1756318415162,1e-08,4648.1,4648.0,6.17316299]
[1756318415349,1e-08,4648.1,4648.0,5.88366299]
[1756318415555,1e-08,4648.1,4648.0,7.03063241]
[1756318415852,1e-08,4648.1,4648.0,7.32013241]
[1756318416055,1e-08,4648.1,4648.0,7.75463241]
[1756318416288,1e-08,4648.1,4648.0,7.03063241]
[1756318416884,1e-08,4648.1,4648.0,7.32013241]
[1756318417386,1e-08,4648.1,4648.0,3.40563241]
[1756318417693,1e-08,4648.1,4648.0,6.17616299]
[1756318418189,1e-08,4648.1,4648.0,5.88666299]
[1756318418439,0.00130001,4648.1,4648.0,0.1072]
[1756318418568,0.00130001,4648.1,4648.0,5.88566299]
[1756318419555,1e-08,4648.1,4648.0,5.88566299]
[1756318422465,1e-08,4648.1,4648.0,6.50246299]
[1756318422678,1e-08,4648.1,4648.0,9.80768223]
[1756318424563,0.02,4649.8,4648.5,2.15123158]
[1756318424796,0.02,4649.8,4649.7,2.15067638]
[1756318424982,0.02,4649.8,4649.7,7.43367638]
[1756318425362,0.0213,4649.8,4649.7,7.43367638]
[1756318426365,0.0233,4649.8,4649.7,5.283]
[1756318426706,0.022,4649.8,4649.7,7.43367638]
[1756318426861,0.022,4649.8,4649.7,7.72487638]
[1756318427298,0.022,4649.8,4649.7,3.80467638]
[1756318427494,0.022,4649.8,4649.7,7.43267638]
[1756318427697,0.1477,4649.8,4649.7,7.43267638]
[1756318428404,0.941,4649.8,4649.7,5.281]
[1756318428776,1.25014978,4649.8,4649.7,5.285]
[1756318428983,0.941,4649.8,4649.7,5.285]
[1756318429571,0.941,4649.8,4647.7,3.0]
[1756318429572,0.792,4649.7,4649.0,1.654]
[1756318429904,0.792,4648.6,4648.0,1.654]
[1756318430206,0.792,4648.7,4648.1,2.229]
[1756318430496,0.0013,4648.2,4648.1,2.229]
[1756318430666,0.0013,4648.2,4648.1,3.632]
[1756318431089,0.0013,4648.2,4648.1,5.7834167]
[1756318431302,0.792,4648.8,4648.1,5.7834167]
[1756318431866,0.0025,4648.2,4648.1,3.632]
[1756318432068,0.0025,4648.2,4648.0,1.654]
[1756318432367,0.0025,4648.2,4648.1,3.632]
[1756318432688,0.792,4648.8,4648.1,5.8906167]
[1756318433090,0.792,4648.7,4648.6,0.1072]
[1756318433290,3.06893902,4648.7,4648.6,0.1072]
[1756318433598,0.792,4648.6,4648.0,1.8682]
[1756318433802,0.0049,4648.1,4648.0,1.761]
[1756318434170,0.0049,4648.1,4648.0,1.8682]
[1756318434372,5.1511477,4648.7,4648.0,1.8682]
[1756318434572,1.16898354,4648.7,4648.0,1.8682]
[1756318434773,0.33675784,4648.7,4648.4,0.1072]
[1756318435169,0.006,4648.5,4648.4,0.1072]
[1756318435565,3.06903158,4648.5,4648.4,0.1072]
[1756318435793,6.06903158,4648.5,4648.4,0.1072]
[1756318436002,6.06903158,4648.5,4648.0,1.761]
[1756318436003,0.792,4648.0,4647.5,0.001]
[1756318436205,0.792,4648.0,4647.7,3.634]
[1756318436419,0.792,4648.0,4647.9,0.1072]
[1756318436891,3.792,4648.5,4647.9,0.1072]
[1756318437073,2.94327311,4648.5,4647.9,0.1072]
[1756318437278,3.792,4648.6,4647.9,0.1072]
[1756318437518,0.792,4648.6,4647.9,0.1072]
[1756318437717,0.1257,4649.0,4648.0,2.15145837]
[1756318437718,0.792,4648.7,4648.0,2.15145837]
[1756318437922,0.792,4648.7,4648.5,0.1072]
[1756318438091,0.0013,4648.6,4648.5,0.1072]
[1756318440305,2.9444853,4648.6,4648.5,0.1072]
[1756318440815,0.7933,4648.6,4648.5,0.1072]
[1756318441002,2.9444853,4648.6,4648.5,0.1072]
[1756318441315,3.57854,4648.6,4648.5,0.1072]
[1756318442002,0.792,4648.4,4648.1,3.632]
[1756318442202,2.94331305,4648.4,4648.2,0.1072]
[1756318442382,0.0025,4648.3,4648.2,0.1072]
[1756318443018,2.94582414,4648.3,4648.2,0.1072]
[1756318443223,4.02143677,4648.3,4648.2,0.1072]
[1756318443540,7.02143677,4648.3,4648.2,0.1072]
[1756318443726,2.94364816,4647.6,4647.5,0.001]
[1756318444130,2.94734816,4647.6,4647.5,0.001]
[1756318445103,6.06944816,4647.6,4647.5,0.001]
[1756318445315,6.76373153,4647.6,4647.5,0.001]
[1756318445523,6.64163153,4647.6,4647.5,0.001]
[1756318446044,3.792,4647.6,4647.5,0.001]
[1756318446335,3.7969,4647.6,4647.5,0.001]
[1756318447308,0.792,4647.6,4647.5,0.001]
[1756318447509,3.0,4648.7,4647.5,0.001]
[1756318447510,1.677,4649.8,4647.5,2.0544]
[1756318447740,0.1072,4649.1,4648.3,2.15131382]
[1756318447941,3.0,4648.7,4648.4,0.4412]
[1756318448245,0.792,4648.6,4648.4,0.4412]
[1756318448444,0.792,4648.6,4648.3,3.634]
[1756318448653,3.0,4648.7,4648.3,4.0752]
[1756318448849,3.792,4648.7,4648.6,0.1072]
[1756318449537,0.33674299,4649.1,4648.6,0.3984]
[1756318449838,7.46063644,4649.8,4649.0,2.15099649]
[1756318450041,3.1072,4649.7,4649.0,2.25819649]
[1756318450233,0.792,4649.6,4649.0,0.1072]
[1756318450752,0.1072,4649.7,4649.1,2.15094735]
[1756318450949,0.022,4649.8,4649.3,0.1072]
[1756318451120,0.92495002,4649.7,4649.3,0.1072]
[1756318451513,0.792,4649.6,4649.3,0.1072]
[1756318451713,3.0,4649.5,4649.3,0.1072]
[1756318451937,0.792,4649.6,4649.3,0.1072]
[1756318452414,3.792,4649.6,4649.3,0.1072]
[1756318452641,0.814,4649.8,4649.3,0.1072]
[1756318452999,3.792,4649.6,4649.3,0.1072]
[1756318453207,0.792,4649.6,4649.3,0.1072]
[1756318453405,0.792,4649.7,4649.3,0.1072]
[1756318453730,2.15075811,4649.6,4649.3,0.1072]
[1756318453926,3.792,4649.4,4649.3,0.1072]
[1756318454128,0.792,4649.4,4649.3,0.1072]
[1756318454328,3.0,4649.6,4649.3,0.1072]
[1756318456630,0.022,4649.8,4649.5,0.3133]
[1756318457015,0.022,4649.8,4649.3,0.1072]
[1756318457616,3.792,4649.7,4649.3,0.1072]
[1756318458016,0.792,4649.7,4649.3,0.1072]
[1756318458910,0.022,4649.8,4649.3,0.5405]
[1756318459557,0.022,4649.8,4649.7,0.3133]
[1756318459841,0.022,4649.8,4649.7,0.4205]
[1756318461340,0.022,4649.8,4649.7,0.8538]
[1756318462042,0.022,4649.8,4649.7,3.00447638]
[1756318462343,0.022,4649.8,4649.7,3.45265638]
[1756318463410,0.022,4649.8,4649.7,3.47416314]
[1756318463750,0.002,4650.3,4650.2,2.15044514]
[1756318464041,0.33861241,4650.7,4650.6,2.15026018]
[1756318464248,0.02,4651.8,4650.7,2.15021394]
[1756318464410,0.02,4651.8,4651.7,2.1497517]
[1756318464613,0.02,4651.8,4651.7,5.7085]
[1756318464813,0.02,4651.8,4651.7,5.3952]
[1756318465043,0.02,4651.8,4651.7,1.7612]
[1756318465254,0.0215,4651.8,4651.7,5.3962]
[1756318465839,0.0215,4651.8,4651.7,0.1072]
[1756318466052,3.8135,4651.8,4651.7,0.1072]
[1756318466433,5.96320549,4651.8,4651.7,0.1072]
[1756318467150,0.792,4651.6,4651.4,0.1072]
[1756318467534,0.003,4651.5,4651.4,0.1072]
[1756318468068,2.94484413,4651.5,4651.4,0.1072]
[1756318468627,3.28137125,4651.5,4651.4,0.1072]
[1756318468825,0.792,4651.3,4650.9,1.654]
[1756318469026,0.792,4651.3,4651.1,3.7412]
[1756318469932,2.14989194,4651.4,4651.1,0.1072]
[1756318469933,2.9434828,4651.2,4651.1,0.1072]
[1756318470260,2.9434828,4651.2,4648.0,16.6432791]
[1756318470261,3.792,4650.8,4650.6,0.1072]
[1756318470430,0.792,4650.5,4650.3,0.1072]
[1756318470827,0.792,4650.4,4650.3,0.1072]
[1756318471051,0.792,4650.5,4650.3,0.1072]
[1756318471250,2.94230874,4650.5,4650.3,0.1072]
[1756318471462,0.792,4650.5,4650.3,0.1072]
[1756318471659,2.94535265,4650.4,4650.3,0.1072]
[1756318472232,0.792,4649.7,4649.5,1.654]
[1756318472665,0.792,4649.8,4649.6,0.1072]
[1756318472830,2.94267638,4649.7,4649.6,0.1072]
[1756318473032,3.09267638,4649.7,4649.6,0.1072]
[1756318473430,0.792,4649.7,4649.6,0.1072]
[1756318473834,2.94267638,4649.7,4649.6,0.1072]
[1756318474038,6.45349843,4649.7,4649.6,0.1072]
[1756318474230,0.792,4649.1,4648.8,3.293]
[1756318474435,0.792,4649.1,4649.0,0.1072]
[1756318475228,0.792,4649.2,4649.0,0.1072]
[1756318475429,2.94292458,4649.2,4649.0,0.1072]
[1756318475632,2.94295394,4649.1,4649.0,0.1072]
[1756318475874,3.09445394,4649.1,4649.0,0.1072]
[1756318476230,2.94295394,4649.1,4649.0,0.1072]
[1756318476768,0.792,4649.1,4649.0,0.1072]
[1756318476967,0.7935,4649.1,4649.0,0.1072]
[1756318477138,2.94445394,4649.1,4649.0,0.1072]
[1756318477632,0.792,4648.7,4648.5,0.001]
[1756318477861,2.94304648,4648.9,4648.8,0.1072]
[1756318478053,0.792,4648.7,4648.6,0.1072]
[1756318478633,2.94613902,4648.7,4648.6,0.1072]
[1756318479534,0.795,4648.7,4648.6,0.1072]
[1756318479771,0.792,4648.7,4648.6,0.4205]
[1756318479943,3.7392,4649.4,4648.7,2.15113902]
[1756318479944,0.1072,4649.4,4648.7,2.15113902]
[1756318480137,0.1072,4649.4,4649.3,0.3133]
[1756318480354,0.792,4649.4,4649.3,3.9483]
[1756318480559,3.631,4650.4,4649.4,2.15077637]
[1756318480754,0.792,4649.9,4649.3,6.21915729]
[1756318480951,2.94262331,4649.9,4649.3,4.0683]
[1756318481161,0.792,4649.7,4649.3,4.0683]
[1756318481685,0.33666214,4650.0,4649.7,2.15067638]
[1756318481983,0.792,4650.7,4649.9,2.46387728]
[1756318482205,0.33663184,4650.8,4649.9,0.3133]
[1756318482352,0.33663184,4650.8,4649.0,1.655]
[1756318482353,0.0015,4650.0,4649.6,3.643]
[1756318482547,0.0015,4650.0,4649.6,0.887]
[1756318482776,0.792,4650.1,4649.6,0.887]
[1756318482959,0.792,4650.2,4649.6,1.3203]
[1756318483161,0.792,4650.2,4649.5,0.4333]
[1756318483453,3.0,4650.5,4649.5,4.0783]
[1756318483760,0.792,4650.5,4650.1,0.3133]
[1756318483967,3.792,4650.5,4650.1,0.3133]
[1756318484184,0.792,4650.5,4650.1,0.3133]
[1756318484389,0.792,4650.5,4650.1,0.7466]
[1756318484552,2.15031837,4650.5,4650.1,0.7466]
[1756318484888,0.792,4650.2,4649.6,0.84113]
[1756318485188,0.792,4650.3,4649.6,0.84113]
[1756318485351,0.792,4650.3,4649.7,0.448613]
[1756318485548,0.792,4650.3,4649.7,2.59928006]
[1756318485793,0.792,4650.3,4649.7,0.448613]
[1756318485794,2.94241308,4650.3,4649.7,0.448613]
[1756318485956,2.15002583,4651.2,4650.3,2.15035784]
[1756318485957,2.15002684,4651.2,4650.3,2.15035784]
[1756318486156,0.792,4651.1,4650.1,4.0773]
[1756318486368,2.15012864,4650.9,4650.1,6.22778035]
[1756318486663,0.792,4650.8,4650.1,4.0773]
[1756318486860,0.792,4650.8,4650.1,6.77866632]
[1756318487060,0.792,4650.8,4650.1,4.62820761]
[1756318487261,3.792,4650.8,4650.1,4.62820761]
[1756318487496,0.792,4650.8,4650.1,4.62820761]
[1756318487786,2.94226238,4650.6,4650.1,4.0773]
[1756318488688,0.792,4650.7,4650.2,0.4315]
[1756318489052,2.15028605,4650.6,4650.2,0.4315]
[1756318489264,0.792,4650.5,4650.2,0.4315]
[1756318489469,3.0,4650.8,4650.2,0.4315]
[1756318489654,0.792,4650.7,4650.2,0.4315]
[1756318489850,0.792,4650.7,4650.2,4.0745]
[1756318490050,0.792,4650.7,4650.2,0.4315]
[1756318490285,0.792,4650.7,4650.2,3.643]
[1756318490286,0.792,4650.5,4650.2,3.643]
[1756318490494,3.0,4650.8,4650.6,0.1072]
[1756318490672,2.94222247,4650.7,4650.4,0.1072]
[1756318490873,0.792,4650.7,4650.4,0.1072]
[1756318491074,0.0015,4650.5,4650.4,0.1072]
[1756318491477,0.792,4650.5,4650.4,0.1072]
[1756318491862,0.792,4650.6,4650.4,0.1072]
[1756318492477,2.9422623,4650.6,4650.4,0.1072]
[1756318492696,0.792,4650.3,4649.9,5.296]
[1756318493003,0.792,4650.3,4650.2,0.1072]
[1756318493373,0.792,4650.6,4650.2,0.8518]
[1756318493565,0.792,4650.7,4650.5,0.1072]
[1756318493899,2.94222836,4650.7,4650.5,0.1072]
[1756318494201,0.792,4650.7,4650.5,0.1072]
[1756318495260,3.792,4650.7,4650.6,0.3131]
[1756318495466,0.792,4650.9,4650.6,0.7446]
[1756318495661,0.792,4651.0,4650.7,0.4315]
[1756318495862,0.792,4651.0,4650.9,0.3131]
[1756318496676,2.15001751,4651.2,4650.9,0.3131]
[1756318497190,0.792,4651.2,4650.9,0.3131]
[1756318497389,0.792,4651.0,4650.9,0.3131]
[1756318498088,5.94212148,4650.9,4650.8,0.1072]
[1756318498593,5.94212148,4650.9,4649.9,3.80458138]
[1756318498594,5.94295394,4649.1,4647.5,0.4325]
[1756318498797,5.94295394,4649.1,4647.8,0.4315]
[1756318499002,3.792,4649.1,4648.5,0.4325]
[1756318499188,5.94295394,4649.1,4648.5,0.4325]
[1756318500283,5.94295394,4649.1,4648.6,0.001]
[1756318500468,5.94445394,4649.1,4648.6,0.001]
[1756318500785,6.34535237,4649.1,4648.6,0.001]
[1756318500986,4.19439843,4649.1,4649.0,0.7456]
[1756318501191,6.14415214,4649.1,4649.0,0.7456]
[1756318501392,3.9931982,4649.1,4649.0,0.3141]
[1756318501796,3.9931982,4649.1,4649.0,0.001]
[1756318502768,6.14415214,4649.1,4649.0,0.001]
[1756318503209,3.9931982,4649.1,4649.0,0.001]
[1756318503605,3.792,4649.1,4649.0,0.001]
[1756318503904,3.792,4649.1,4649.0,0.7456]
[1756318503905,3.99311241,4649.1,4649.0,0.7456]
[1756318504472,0.33672734,4649.7,4649.0,1.03527269]
[1756318504821,0.33672734,4649.7,4649.1,0.4315]
[1756318505005,0.33672734,4649.7,4649.6,0.3131]
[1756318505177,3.792,4650.0,4649.6,0.3131]
[1756318505376,0.20107243,4649.9,4649.6,0.3131]
[1756318505588,0.792,4649.8,4649.6,0.7446]